bitfinex/quotes_BTCUSD_20240721
["timestamp","ask_amount","ask_price","bid_price","bid_amount"]
[1721564771146,0.01812626,67041.0,67040.0,0.41113257]
[1721564772068,0.01312626,67041.0,67040.0,0.41113257]
[1721564772562,0.01812626,67041.0,67040.0,0.287264]
[1721564772573,0.01612626,67041.0,67040.0,0.41113057]
[1721564772795,0.01812626,67041.0,67040.0,0.41113057]
[1721564772987,0.00284,67041.0,67040.0,1.00778857]
[1721564773159,0.00684,67041.0,67040.0,1.00778857]
[1721564773513,0.00784,67041.0,67040.0,1.30611757]
[1721564773809,0.00484,67041.0,67040.0,1.30611757]
[1721564774116,0.00284,67041.0,67040.0,1.30611757]
[1721564774276,0.00784,67041.0,67040.0,1.30611757]
[1721564774805,0.00784,67041.0,67040.0,0.41113057]
[1721564775360,0.00284,67041.0,67040.0,0.41113057]
[1721564775597,0.00284,67041.0,67040.0,0.585593]
[1721564775829,0.00284,67041.0,67040.0,0.71245398]
[1721564776110,0.00084,67041.0,67040.0,0.70945413]
[1721564776510,0.00084,67041.0,67040.0,0.71145413]
[1721564776720,0.00184,67041.0,67040.0,0.71145413]
[1721564778759,0.00184,67041.0,67040.0,0.71145427]
[1721564780649,0.00184,67041.0,67040.0,0.70945427]
[1721564781064,0.00084,67041.0,67040.0,0.71145427]
[1721564781935,0.00084,67041.0,67040.0,0.71145429]
[1721564782331,0.00184,67041.0,67040.0,0.71145429]
[1721564782641,0.00184,67041.0,67040.0,0.41312529]
[1721564785290,0.00184,67041.0,67040.0,0.289264]
[1721564785432,0.00184,67041.0,67040.0,0.41312501]
[1721564788742,0.00184,67041.0,67040.0,0.41312498]
[1721564788870,0.00184,67041.0,67040.0,0.289264]
[1721564789074,0.00184,67041.0,67040.0,0.41312506]
[1721564791784,0.00184,67041.0,67040.0,0.289264]
[1721564791965,0.00184,67041.0,67040.0,0.41312471]
[1721564792515,0.00184,67041.0,67040.0,0.71145371]
[1721564794989,0.00184,67041.0,67040.0,0.587593]
[1721564795171,0.00184,67041.0,67040.0,0.71145356]
[1721564798829,0.00184,67041.0,67040.0,0.587593]
[1721564798994,0.00184,67041.0,67040.0,0.35182456]
[1721564799205,0.00278259,67041.0,67040.0,0.35182456]
[1721564799544,0.01110819,67041.0,67040.0,0.35182456]
[1721564801269,0.01110819,67041.0,67040.0,0.65015356]
[1721564801517,0.0101656,67041.0,67040.0,0.65015315]
[1721564801668,0.00184,67041.0,67040.0,0.65015315]
[1721564802281,0.00184,67041.0,67040.0,1.01078215]
[1721564802529,0.00184,67041.0,67040.0,1.30911115]
[1721564803320,0.00084,67041.0,67040.0,1.30711115]
[1721564803749,0.00084,67041.0,67040.0,1.31011115]
[1721564804179,0.00084,67041.0,67040.0,1.186251]
[1721564804376,0.00084,67041.0,67040.0,1.31010598]
[1721564806992,0.00084,67041.0,67040.0,1.30710598]
[1721564807256,0.00184,67041.0,67040.0,1.31510598]
[1721564807476,0.00184,67041.0,67040.0,1.30710598]
[1721564808011,0.00284,67041.0,67040.0,1.32010598]
[1721564808222,0.00284,67041.0,67040.0,1.47448384]
[1721564808459,0.00284,67041.0,67040.0,1.95858176]
[1721564808603,0.00284,67041.0,67040.0,1.64896174]
[1721564808804,0.00284,67041.0,67040.0,1.95856737]
[1721564809309,0.00084,67041.0,67040.0,1.95056737]
[1721564809455,0.00084,67041.0,67040.0,1.94556737]
[1721564809646,0.00284,67041.0,67040.0,1.96156737]
[1721564810283,0.00284,67041.0,67040.0,1.96656737]
[1721564810457,0.00284,67041.0,67040.0,1.95456737]
[1721564810458,0.00184,67041.0,67040.0,1.95456737]
[1721564810884,0.00284,67041.0,67040.0,1.95656737]
[1721564811041,0.00184,67041.0,67040.0,1.95656737]
[1721564811244,0.00184,67041.0,67040.0,1.96656737]
[1721564811446,0.00284,67041.0,67040.0,1.96656737]
[1721564812798,0.00184,67041.0,67040.0,1.95556737]
[1721564813101,0.00284,67041.0,67040.0,1.96856737]
[1721564813244,0.00184,67041.0,67040.0,1.95856737]
[1721564813485,0.00184,67041.0,67040.0,2.01063488]
[1721564813652,0.00284,67041.0,67040.0,2.02163488]
[1721564813852,0.00284,67041.0,67040.0,1.48547499]
[1721564814634,0.00284,67041.0,67040.0,1.48547435]
[1721564815839,0.00184,67041.0,67040.0,1.47247435]
[1721564816290,0.00284,67041.0,67040.0,1.48347435]
[1721564816634,0.00184,67041.0,67040.0,1.47247435]
[1721564816945,0.00284,67041.0,67040.0,1.48347435]
[1721564817145,0.00184,67041.0,67040.0,1.47247435]
[1721564817398,0.00084,67041.0,67040.0,1.47247435]
[1721564817566,0.00184,67041.0,67040.0,1.47247435]
[1721564817791,0.00284,67041.0,67040.0,1.4834742]
[1721564821250,0.00284,67041.0,67040.0,1.48347452]
[1721564822765,0.00284,67041.0,67040.0,1.03076378]
[1721564822914,0.00284,67041.0,67040.0,0.96846378]
[1721564823311,0.00284,67041.0,67040.0,0.96846973]
[1721564824101,0.00284,67041.0,67040.0,0.89166973]
[1721564825806,0.00284,67041.0,67040.0,0.59334073]
[1721564826015,0.011008,67041.0,67040.0,0.59334073]
[1721564826224,0.00284,67041.0,67040.0,0.59334073]
[1721564826409,0.01119497,67041.0,67040.0,0.469493]
[1721564826615,0.01119497,67041.0,67040.0,0.59334073]
[1721564827039,0.00284,67041.0,67040.0,0.59334073]
[1721564827284,0.01119497,67041.0,67040.0,0.59334073]
[1721564832858,0.00284,67041.0,67040.0,0.469493]
[1721564833065,0.00284,67041.0,67040.0,0.59334073]
[1721564836003,0.00284,67041.0,67040.0,0.469493]
[1721564836208,0.00284,67041.0,67040.0,0.59334073]
[1721564837545,0.08364,67041.0,67040.0,0.14584773]
[1721564837750,0.14574,67041.0,67040.0,0.14584773]
[1721564837951,0.15407092,67041.0,67040.0,0.14584773]
[1721564838155,0.15407092,67041.0,67040.0,0.29501173]
[1721564839106,0.15407092,67041.0,67040.0,0.14584773]
[1721564839364,0.15307092,67041.0,67040.0,0.13485739]
[1721564839986,0.15207092,67041.0,67040.0,0.12385739]
[1721564840391,0.15207092,67041.0,67040.0,0.12885739]
[1721564840595,0.15207092,67041.0,67040.0,0.12385739]
[1721564840858,0.15207092,67041.0,67040.0,0.12785739]
[1721564840999,0.15207092,67041.0,67040.0,0.13285739]
[1721564841426,0.15207092,67041.0,67040.0,0.12885739]
[1721564841626,0.15207092,67041.0,67040.0,0.13085739]
[1721564842605,0.15207092,67041.0,67040.0,0.13085771]
[1721564845637,0.15207092,67041.0,67040.0,0.007]
[1721564845967,0.15207092,67041.0,67040.0,0.13085771]
[1721564849095,0.15207092,67041.0,67040.0,0.13085802]
[1721564853493,0.00917092,67041.0,67040.0,0.13085802]
[1721564854365,0.00917092,67041.0,67040.0,0.27155788]
[1721564855225,0.00917092,67041.0,67040.0,0.21035788]
[1721564855830,0.00917092,67041.0,67040.0,0.13085788]
[1721564866757,0.08517092,67041.0,67040.0,0.13085788]
[1721564869764,0.00917092,67041.0,67040.0,0.13085788]
[1721564869941,0.00917092,67041.0,67040.0,0.21255788]
[1721564872042,0.00917092,67041.0,67040.0,0.21255789]
[1721564872437,0.00917092,67041.0,67040.0,0.2125579]
[1721564872892,0.00917092,67041.0,67040.0,0.1308579]
[1721564881334,0.00917092,67041.0,67040.0,0.007]
[1721564881577,0.00917092,67041.0,67040.0,0.1308579]
[1721564890382,0.15833292,67041.0,67040.0,0.007]
[1721564890601,0.15833292,67041.0,67040.0,0.13086004]
[1721564890751,0.00917092,67041.0,67040.0,0.13086004]
[1721564893730,0.00917092,67041.0,67040.0,0.007]
[1721564893971,0.00917092,67041.0,67040.0,0.13086004]
[1721564896868,0.00917092,67041.0,67040.0,0.007]
[1721564897075,0.00917092,67041.0,67040.0,0.13086004]
[1721564897327,0.60205692,67041.0,67040.0,0.13086004]
[1721564897499,0.90038092,67041.0,67040.0,0.13086004]
[1721564897742,0.60205692,67041.0,67040.0,0.13086004]
[1721564900274,0.60205692,67041.0,67040.0,0.1308641]
[1721564900838,0.70337503,67041.0,67040.0,0.1308641]
[1721564901261,0.15833292,67041.0,67040.0,0.1308641]
[1721564901441,0.15833292,67041.0,67040.0,0.2135641]
[1721564903446,0.00917092,67041.0,67040.0,0.0897]
[1721564903540,0.00917092,67041.0,67040.0,0.21356385]
[1721564906467,0.00917092,67041.0,67040.0,0.0897]
[1721564906669,0.00917092,67041.0,67040.0,0.21356385]
[1721564907737,0.00917092,67041.0,67040.0,0.13086385]
[1721564916283,0.00917092,67041.0,67040.0,0.007]
[1721564916510,0.00917092,67041.0,67040.0,0.13086385]
[1721564919603,0.00917092,67041.0,67040.0,0.28002425]
[1721564921878,0.00917092,67041.0,67040.0,0.27877526]
[1721564922077,0.00917092,67041.0,67040.0,0.65540426]
[1721564922765,0.00917092,67041.0,67040.0,0.53154401]
[1721564922965,0.00917092,67041.0,67040.0,0.65540356]
[1721564923219,0.00917092,67041.0,67040.0,0.53154401]
[1721564923545,0.00917092,67041.0,67040.0,0.65540356]
[1721564923822,0.00084,67041.0,67040.0,0.65540356]
[1721564924029,0.00918316,67041.0,67040.0,0.65540356]
[1721564924235,0.00084,67041.0,67040.0,0.65540356]
[1721564924387,0.00918316,67041.0,67040.0,0.65540356]
[1721564924613,0.00084,67041.0,67040.0,0.53154401]
[1721564924788,0.00084,67041.0,67040.0,0.65540356]
[1721564924987,0.00918316,67041.0,67040.0,0.65540356]
[1721564925232,0.00084,67041.0,67040.0,0.65540356]
[1721564925444,0.00918316,67041.0,67040.0,0.65540356]
[1721564925627,0.00084,67041.0,67040.0,0.65540356]
[1721564925978,0.00824057,67041.0,67040.0,0.65540356]
[1721564926183,0.00084,67041.0,67040.0,0.65540356]
[1721564926390,0.00178259,67041.0,67040.0,0.65540356]
[1721564926651,0.00084,67041.0,67040.0,0.65540356]
[1721564926766,0.00918442,67041.0,67040.0,0.65540356]
[1721564927096,0.00084,67041.0,67040.0,0.65540356]
[1721564927306,0.00918442,67041.0,67040.0,0.65540356]
[1721564927514,0.00178259,67041.0,67040.0,0.65540356]
[1721564931113,0.00178259,67041.0,67040.0,0.57710356]
[1721564932656,0.00178259,67041.0,67040.0,0.45324401]
[1721564932860,0.00178259,67041.0,67040.0,0.57710358]
[1721564933042,0.00178259,67041.0,67040.0,0.45324401]
[1721564933234,0.00178259,67041.0,67040.0,0.57710358]
[1721564933656,0.00178259,67041.0,67040.0,0.27877458]
[1721564933657,0.13858259,67041.0,67040.0,0.27877458]
[1721564933858,0.17191801,67041.0,67040.0,0.27877458]
[1721564934049,0.06228259,67041.0,67040.0,0.27877458]
[1721564934953,0.06228259,67041.0,67040.0,0.65540358]
[1721564934954,0.00178259,67041.0,67040.0,0.65540358]
[1721564935193,0.00084,67041.0,67040.0,0.71550358]
[1721564935399,0.00084,67041.0,67040.0,0.59164401]
[1721564935627,0.00084,67041.0,67040.0,0.71550094]
[1721564936129,0.00084,67041.0,67040.0,0.71550059]
[1721564938309,0.00084,67041.0,67040.0,1.01382959]
[1721564939330,0.00084,67041.0,67040.0,1.01382726]
[1721564941248,0.00084,67041.0,67040.0,1.31215626]
[1721564941432,0.00084,67041.0,67040.0,1.95063097]
[1721564941630,0.00084,67041.0,67040.0,1.99520101]
[1721564941792,0.00084,67041.0,67040.0,1.95061323]
[1721564941988,0.00084,67041.0,67040.0,1.95060625]
[1721564942478,0.00084,67041.0,67040.0,1.99315164]
[1721564943079,0.00084,67041.0,67040.0,1.98940063]
[1721564943272,0.00084,67041.0,67040.0,1.94485524]
[1721564943528,0.00084,67041.0,67040.0,1.94985524]
[1721564943623,0.00084,67041.0,67040.0,1.94485524]
[1721564943819,0.00084,67041.0,67040.0,1.94685524]
[1721564944095,0.00184,67041.0,67040.0,1.95985524]
[1721564944254,0.00184,67041.0,67040.0,2.00985524]
[1721564944447,0.00184,67041.0,67040.0,1.95785524]
[1721564945226,0.00284,67041.0,67040.0,1.97185524]
[1721564947904,0.00284,67041.0,67040.0,1.78609791]
[1721564948119,0.00284,67041.0,67040.0,1.97185217]
[1721564950346,0.00284,67041.0,67040.0,2.02387526]
[1721564951105,0.00284,67041.0,67040.0,1.78609791]
[1721564951333,0.00284,67041.0,67040.0,2.02387524]
[1721564951536,0.00284,67041.0,67040.0,1.66226174]
[1721564951714,0.00284,67041.0,67040.0,2.02387524]
[1721564951963,0.00284,67041.0,67040.0,2.02262687]
[1721564954353,0.00284,67041.0,67040.0,1.66101337]
[1721564954542,0.00284,67041.0,67040.0,2.02262622]
[1721564957685,0.00284,67041.0,67040.0,2.0226261]
[1721564960341,0.00284,67041.0,67040.0,1.9706038]
[1721564961020,0.00284,67041.0,67040.0,1.97060383]
[1721564961401,0.00284,67041.0,67040.0,1.97152783]
[1721564967271,0.00284,67041.0,67040.0,1.66193737]
[1721564967473,0.00184,67041.0,67040.0,1.95752782]
[1721564967715,0.00084,67041.0,67040.0,1.05508808]
[1721564967897,0.00184,67041.0,67040.0,1.12112695]
[1721564968100,0.00284,67041.0,67040.0,0.89633381]
[1721564968946,0.00184,67041.0,67040.0,0.88333381]
[1721564969118,0.00184,67041.0,67040.0,1.12112907]
[1721564969320,0.00184,67041.0,67040.0,1.19682907]
[1721564969524,0.00184,67041.0,67040.0,1.21020094]
[1721564970300,0.00184,67041.0,67040.0,0.91459763]
[1721564970500,0.00084,67041.0,67040.0,1.2102025]
[1721564970747,0.00084,67041.0,67040.0,1.5085315]
[1721564970898,0.00084,67041.0,67040.0,1.5225315]
[1721564972436,0.00084,67041.0,67040.0,1.4571315]
[1721564973291,0.14364,67041.0,67040.0,1.3814315]
[1721564977029,0.14364,67041.0,67040.0,1.38143305]
[1721564980125,0.14364,67041.0,67040.0,1.07182663]
[1721564980327,0.14364,67041.0,67040.0,1.38143305]
[1721564980555,0.14364,67041.0,67040.0,1.07182663]
[1721564980752,0.14364,67041.0,67040.0,1.38143306]
[1721564982985,0.00084,67041.0,67040.0,1.38143306]
[1721564983398,0.00084,67041.0,67040.0,1.07182663]
[1721564983614,0.00084,67041.0,67040.0,1.38143305]
[1721564986653,0.00084,67041.0,67040.0,1.1956692]
[1721564986876,0.00084,67041.0,67040.0,1.38143303]
[1721564988786,0.07844,67041.0,67040.0,1.38143303]
[1721564990049,0.07844,67041.0,67040.0,1.38143304]
[1721564994549,0.00084,67041.0,67040.0,1.38143304]
[1721564998245,0.00084,67041.0,67040.0,1.45883304]
[1721564998481,0.00084,67041.0,67040.0,1.51933304]
[1721564999247,0.00084,67042.0,67041.0,0.14954983]
[1721564999443,0.00084,67042.0,67041.0,1.43152824]
[1721564999641,0.00084,67042.0,67041.0,1.35412824]
[1721565000562,0.00084,67042.0,67041.0,1.36812824]
[1721565001205,0.00084,67042.0,67041.0,1.38212824]
[1721565002205,0.00084,67042.0,67041.0,1.38212834]
[1721565002781,0.00084,67042.0,67041.0,1.38212824]
[1721565003473,0.14624,67042.0,67041.0,1.38212824]
[1721565005190,0.14624,67042.0,67041.0,1.07252183]
[1721565005416,0.14624,67042.0,67041.0,1.38212824]
[1721565005908,0.00084,67042.0,67041.0,1.38212824]
[1721565007236,0.00084,67042.0,67041.0,1.08380424]
[1721565008306,0.14624,67042.0,67041.0,0.33799424]
[1721565008545,0.14624,67042.0,67041.0,0.15223036]
[1721565008546,0.2954,67042.0,67041.0,0.15223036]
[1721565008717,0.14624,67042.0,67041.0,0.15223036]
[1721565009490,0.2954,67042.0,67041.0,0.13823036]
[1721565009984,0.2954,67042.0,67041.0,0.14123036]
[1721565010386,0.2954,67042.0,67041.0,0.13823036]
[1721565010766,0.2954,67042.0,67041.0,0.12423036]
[1721565010958,0.2954,67042.0,67041.0,0.13023036]
[1721565011204,0.14624,67042.0,67041.0,0.13023036]
[1721565011349,0.14624,67042.0,67041.0,0.12423036]
[1721565011550,0.14624,67042.0,67041.0,0.12624915]
[1721565012942,0.14624,67042.0,67041.0,0.12824915]
[1721565014749,0.14624,67042.0,67041.0,0.00438783]
[1721565014988,0.14624,67042.0,67041.0,0.12824915]
[1721565017472,0.15374128,67042.0,67041.0,0.12824915]
[1721565018092,0.15374128,67042.0,67041.0,0.27741115]
[1721565018220,0.00834128,67042.0,67041.0,1.02075915]
[1721565018433,0.00834128,67042.0,67041.0,1.31908315]
[1721565018685,0.00084,67042.0,67041.0,1.31908315]
[1721565021149,0.00084,67042.0,67041.0,1.19522183]
[1721565021348,0.00084,67042.0,67041.0,1.31907316]
[1721565023229,0.00084,67042.0,67041.0,1.56384562]
[1721565023372,0.00084,67042.0,67041.0,1.32606029]
[1721565023771,0.00084,67042.0,67041.0,1.55684555]
[1721565023976,0.00084,67042.0,67041.0,1.31906029]
[1721565024242,0.00084,67042.0,67041.0,1.3150601]
[1721565024440,0.00084,67042.0,67041.0,2.01455067]
[1721565024711,0.00084,67042.0,67041.0,2.01454884]
[1721565025200,0.00084,67042.0,67041.0,2.03754884]
[1721565025620,0.00084,67042.0,67041.0,2.02754884]
[1721565025731,0.00084,67042.0,67041.0,2.02847284]
[1721565025940,0.00084,67042.0,67041.0,2.01947284]
[1721565026401,0.00084,67042.0,67041.0,2.02947284]
[1721565026722,0.00084,67042.0,67041.0,2.01947284]
[1721565026952,0.00084,67042.0,67041.0,1.65785157]
[1721565027142,0.00084,67042.0,67041.0,2.01947093]
[1721565027260,0.00084,67042.0,67041.0,2.03247093]
[1721565027664,0.00084,67042.0,67041.0,2.02047089]
[1721565027973,0.00084,67042.0,67041.0,2.03447089]
[1721565028793,0.00084,67042.0,67041.0,1.79668889]
[1721565029187,0.00084,67042.0,67041.0,1.81068889]
[1721565032271,0.00084,67042.0,67041.0,2.04846059]
[1721565032446,0.00084,67042.0,67041.0,2.0464409]
[1721565034047,0.00084,67042.0,67041.0,2.04643158]
[1721565034865,0.00084,67042.0,67041.0,2.09092281]
[1721565035475,0.00084,67042.0,67041.0,2.04643158]
[1721565035675,0.00084,67042.0,67041.0,2.53924681]
[1721565036452,0.00084,67042.0,67041.0,2.82539267]
[1721565036631,0.00084,67042.0,67041.0,2.90037513]
[1721565036813,0.00084,67042.0,67041.0,2.92262074]
[1721565037032,0.00084,67042.0,67041.0,2.89462074]
[1721565037245,0.00084,67042.0,67041.0,3.44527958]
[1721565037430,0.00084,67042.0,67041.0,3.88706061]
[1721565037626,0.00084,67042.0,67041.0,3.38706061]
[1721565038254,0.00084,67042.0,67041.0,3.40106061]
[1721565038477,0.00084,67042.0,67041.0,3.28990386]
[1721565038697,0.00084,67042.0,67041.0,3.27590386]
[1721565038902,0.00084,67042.0,67041.0,3.26190386]
[1721565039051,0.00084,67042.0,67041.0,3.27590386]
[1721565039262,0.00084,67042.0,67041.0,3.28990386]
[1721565039455,0.00084,67042.0,67041.0,3.29874396]
[1721565040255,0.00084,67042.0,67041.0,4.10874396]
[1721565040657,0.00084,67042.0,67041.0,4.19759101]
[1721565040869,0.00084,67042.0,67041.0,4.19753833]
[1721565041692,0.00084,67042.0,67041.0,4.14753833]
[1721565041915,0.00084,67042.0,67041.0,4.19753833]
[1721565042447,0.00084,67042.0,67041.0,4.10869187]
[1721565043685,0.00084,67042.0,67041.0,4.1086918]
[1721565043857,0.00084,67042.0,67041.0,4.1752732]
[1721565044068,0.00084,67042.0,67041.0,4.1086918]
[1721565044284,0.00084,67042.0,67041.0,4.17527415]
[1721565045234,0.00084,67042.0,67041.0,4.17527416]
[1721565045441,0.00084,67042.0,67041.0,3.8446561]
[1721565045855,0.00084,67042.0,67041.0,3.29393251]
[1721565046094,0.00084,67042.0,67041.0,2.95122575]
[1721565046296,0.00084,67042.0,67041.0,2.88632575]
[1721565046680,0.00084,67042.0,67041.0,2.82232575]
[1721565046855,0.00084,67042.0,67041.0,2.87234405]
[1721565047275,0.00084,67042.0,67041.0,2.82234405]
[1721565047427,0.00084,67042.0,67041.0,2.88634405]
[1721565048048,0.00084,67042.0,67041.0,2.83634405]
[1721565049765,0.00084,67042.0,67041.0,2.75454405]
[1721565049901,0.00084,67042.0,67041.0,2.74570395]
[1721565050120,0.00084,67042.0,67041.0,2.43615157]
[1721565050321,0.00084,67042.0,67041.0,2.74571602]
[1721565050770,0.00084,67042.0,67041.0,2.74571772]
[1721565051121,0.00084,67042.0,67041.0,2.73171772]
[1721565051569,0.00084,67042.0,67041.0,2.74571772]
[1721565051772,0.00084,67042.0,67041.0,2.73171772]
[1721565052108,0.00084,67042.0,67041.0,2.74571772]
[1721565052304,0.00084,67042.0,67041.0,2.75971772]
[1721565052528,0.00084,67042.0,67041.0,2.74571772]
[1721565052747,0.00084,67042.0,67041.0,2.71771772]
[1721565052947,0.00084,67042.0,67041.0,2.73171772]
[1721565053148,0.00084,67042.0,67041.0,2.74571772]
[1721565053283,0.00084,67042.0,67041.0,2.43615157]
[1721565053477,0.00084,67042.0,67041.0,2.74571769]
[1721565055249,0.00084,67042.0,67041.0,2.74565411]
[1721565056538,0.00084,67042.0,67041.0,1.62608799]
[1721565056709,0.00084,67042.0,67041.0,1.93565435]
[1721565059613,0.00084,67042.0,67041.0,1.63733035]
[1721565059779,0.00084,67042.0,67041.0,1.63733082]
[1721565060284,0.00084,67042.0,67041.0,1.71543082]
[1721565062421,0.00084,67042.0,67041.0,1.7154308]
[1721565063221,0.00084,67042.0,67041.0,1.75987197]
[1721565064768,0.00084,67042.0,67041.0,1.68177197]
[1721565065512,0.00084,67042.0,67041.0,1.6373308]
[1721565066475,0.00084,67042.0,67041.0,1.70402895]
[1721565067439,0.00084,67042.0,67041.0,2.03467759]
[1721565068716,0.00084,67042.0,67041.0,2.03470193]
[1721565069529,0.00084,67042.0,67041.0,1.96797517]
[1721565069732,0.00084,67042.0,67041.0,2.10997517]
[1721565070542,0.00084,67042.0,67041.0,2.15997517]
[1721565071338,0.00084,67042.0,67041.0,2.10997517]
[1721565071992,0.00084,67042.0,67041.0,1.92423754]
[1721565072148,0.00084,67042.0,67041.0,2.10997509]
[1721565072634,0.00084,67042.0,67041.0,2.40829909]
[1721565073038,0.00084,67042.0,67041.0,2.26629909]
[1721565073453,0.00084,67042.0,67041.0,2.3553137]
[1721565073650,0.00084,67042.0,67041.0,2.26629909]
[1721565074011,0.00084,67042.0,67041.0,2.3553137]
[1721565075024,0.00084,67042.0,67041.0,1.62608799]
[1721565075229,0.00084,67042.0,67041.0,2.35533024]
[1721565077508,0.00084,67042.0,67041.0,2.26629896]
[1721565078301,0.00084,67042.0,67041.0,1.62608799]
[1721565078571,0.00084,67042.0,67041.0,2.26629896]
[1721565078697,0.00084,67042.0,67041.0,2.46941136]
[1721565078985,0.00084,67042.0,67041.0,2.51941136]
[1721565079240,0.00084,67042.0,67041.0,2.63073834]
[1721565079670,0.00084,67042.0,67041.0,2.6741852]
[1721565080546,0.00084,67042.0,67041.0,2.6241852]
[1721565080833,0.00084,67042.0,67041.0,2.6741852]
[1721565081027,0.00084,67042.0,67041.0,2.6241852]
[1721565081253,0.00084,67042.0,67041.0,2.6741852]
[1721565081371,0.00084,67042.0,67041.0,2.6241852]
[1721565081568,0.00084,67042.0,67041.0,2.31460838]
[1721565081776,0.00084,67042.0,67041.0,2.62415751]
[1721565081998,0.00084,67042.0,67041.0,1.92206183]
[1721565082288,0.00084,67042.0,67041.0,2.67414739]
[1721565082477,0.00084,67042.0,67041.0,2.62414739]
[1721565084640,0.00084,67042.0,67041.0,2.62414828]
[1721565084855,0.00084,67042.0,67041.0,2.56224274]
[1721565085038,0.00084,67042.0,67041.0,2.4829528]
[1721565085239,0.00084,67042.0,67041.0,2.32817896]
[1721565087999,0.00084,67042.0,67041.0,1.62608799]
[1721565088197,0.00084,67042.0,67041.0,2.32820581]
[1721565089301,0.00084,67042.0,67041.0,2.37820581]
[1721565089503,0.00084,67042.0,67041.0,2.46940581]
[1721565091342,0.00084,67042.0,67041.0,2.62416436]
[1721565091541,0.00084,67042.0,67041.0,2.46938556]
[1721565091746,0.00084,67042.0,67041.0,2.46938442]
[1721565092651,0.00084,67042.0,67041.0,2.51938442]
[1721565093058,0.00084,67042.0,67041.0,2.51939397]
[1721565093422,0.00084,67042.0,67041.0,2.46939397]
[1721565094419,0.00084,67042.0,67041.0,2.07684276]
[1721565094647,0.00084,67042.0,67041.0,2.46939388]
[1721565095046,0.00084,67042.0,67041.0,2.51939388]
[1721565095195,0.00084,67042.0,67041.0,2.46939388]
[1721565096656,0.00084,67042.0,67041.0,2.51939388]
[1721565097562,0.00084,67042.0,67041.0,2.56939388]
[1721565097761,0.00084,67042.0,67041.0,2.12684272]
[1721565097910,0.00084,67042.0,67041.0,2.51939379]
[1721565098119,0.00084,67042.0,67041.0,2.56939379]
[1721565098320,0.00084,67042.0,67041.0,2.51939379]
[1721565101200,0.00084,67042.0,67041.0,2.14792812]
[1721565101382,0.00084,67042.0,67041.0,2.51939379]
[1721565101987,0.00084,67042.0,67041.0,2.67416658]
[1721565102400,0.00084,67042.0,67041.0,2.51939379]
[1721565103394,0.00084,67042.0,67041.0,2.67416536]
[1721565103594,0.00084,67042.0,67041.0,2.51938963]
[1721565104143,0.00084,67042.0,67041.0,2.06493112]
[1721565104364,0.00084,67042.0,67041.0,2.51938944]
[1721565105206,0.00084,67042.0,67041.0,2.56938944]
[1721565105445,0.00084,67042.0,67041.0,2.23875136]
[1721565105670,0.00084,67042.0,67041.0,2.56938944]
[1721565106796,0.00084,67042.0,67041.0,2.86771344]
[1721565107003,0.00084,67042.0,67041.0,2.89071344]
[1721565107218,0.00084,67042.0,67041.0,3.0454843]
[1721565107562,0.00084,67042.0,67041.0,2.34338285]
[1721565107906,0.00084,67042.0,67041.0,3.04545842]
[1721565109253,0.00084,67042.0,67041.0,3.03145842]
[1721565109748,0.00084,67042.0,67041.0,3.04545842]
[1721565110771,0.00084,67042.0,67041.0,2.98355068]
[1721565110973,0.00084,67042.0,67041.0,3.04545901]
[1721565111172,0.00084,67042.0,67041.0,2.34338285]
[1721565111371,0.00084,67042.0,67041.0,3.04545903]
[1721565111782,0.00084,67042.0,67041.0,5.04545903]
[1721565112548,0.00084,67042.0,67041.0,5.03145903]
[1721565112745,0.00084,67042.0,67041.0,4.89025903]
[1721565113092,0.00084,67042.0,67041.0,5.34918303]
[1721565113253,0.00084,67042.0,67041.0,6.01918303]
[1721565113697,0.00084,67048.0,67047.0,1.887239]
[1721565114029,0.00084,67048.0,67047.0,2.84553794]
[1721565114144,0.00084,67048.0,67047.0,3.15499701]
[1721565115214,0.00084,67048.0,67047.0,3.02138545]
[1721565115617,0.00084,67048.0,67047.0,3.03538545]
[1721565116074,0.00084,67048.0,67047.0,3.02138545]
[1721565116459,0.00084,67048.0,67047.0,3.04938545]
[1721565116783,0.00084,67048.0,67047.0,3.03538545]
[1721565117038,0.00084,67048.0,67047.0,3.04938545]
[1721565117180,0.00084,67048.0,67047.0,3.03538545]
[1721565118075,0.00084,67048.0,67047.0,3.04938545]
[1721565118389,0.00084,67048.0,67047.0,3.03538545]
[1721565119019,0.00084,67048.0,67047.0,3.04938545]
[1721565120217,0.00084,67048.0,67047.0,2.67797901]
[1721565120411,0.00084,67048.0,67047.0,3.04937813]
[1721565120926,0.00084,67048.0,67047.0,3.04937159]
[1721565122725,0.00084,67048.0,67047.0,2.98747114]
[1721565122930,0.00084,67048.0,67047.0,3.05835159]
[1721565123502,0.00084,67048.0,67047.0,3.81835159]
[1721565123913,0.00084,67048.0,67047.0,3.05835159]
[1721565124106,0.00084,67048.0,67047.0,3.77835159]
[1721565124322,0.00084,67048.0,67047.0,4.21974959]
[1721565124466,0.00084,67048.0,67047.0,4.23374959]
[1721565124923,0.00084,67048.0,67047.0,4.21974959]
[1721565125775,0.00084,67048.0,67047.0,4.23374959]
[1721565126073,0.00084,67048.0,67047.0,3.889166]
[1721565126192,0.00084,67048.0,67047.0,4.20574334]
[1721565126634,0.00084,67061.0,67060.0,1.34208]
[1721565126744,0.00084,67061.0,67060.0,1.80595769]
[1721565127363,0.00084,67061.0,67060.0,1.95595769]
[1721565128826,0.00084,67061.0,67060.0,1.98395769]
[1721565129033,0.00084,67061.0,67060.0,2.03596484]
[1721565129229,0.00084,67061.0,67060.0,1.98396102]
[1721565129470,0.00084,67061.0,67060.0,2.03596506]
[1721565129866,0.00084,67061.0,67060.0,1.98396102]
[1721565130455,0.00084,67061.0,67060.0,1.96996102]
[1721565132031,0.00084,67061.0,67060.0,1.98396102]
[1721565132285,0.00084,67061.0,67060.0,1.66046174]
[1721565132506,0.00084,67061.0,67060.0,1.98395552]
[1721565132925,0.00084,67061.0,67060.0,1.96995552]
[1721565133334,0.00084,67061.0,67060.0,1.98395552]
[1721565136592,0.06204,67061.0,67060.0,1.98395552]
[1721565136848,0.06204,67061.0,67060.0,1.95595552]
[1721565137105,0.06204,67061.0,67060.0,1.96995552]
[1721565137368,0.14184,67061.0,67060.0,1.98395552]
[1721565137678,0.14184,67061.0,67060.0,1.62171552]
[1721565137864,0.14184,67061.0,67060.0,1.45001925]
[1721565138096,0.14184,67061.0,67060.0,1.43601925]
[1721565138514,0.14184,67061.0,67060.0,1.42201925]